fUSD/lending_fUSD_20250804
["ID","MTS","AMOUNT","RATE_DAILY","PERIOD"]
[377203530,1754290291306,-500.0,0.00046999,15]
[377203531,1754290291357,-500.0,0.00046999,15]
[377203532,1754290291405,-515.47910692,0.00046999,15]
[377203533,1754290291453,-500.0,0.00046999,15]
[377203534,1754290291506,-500.0,0.00046999,15]
[377203535,1754290291560,-500.0,0.00046999,15]
[377203536,1754290291614,-500.0,0.00046999,15]
[377203537,1754290291670,-500.0,0.00046999,120]
[377203538,1754290291724,-500.0,0.00046999,15]
[377203539,1754290291777,-500.0,0.00046999,120]
[377203540,1754290291827,-500.0,0.00046999,120]
[377203541,1754290291878,-500.0,0.00046999,15]
[377203542,1754290291931,-300.0,0.00046999,15]
[377203543,1754290291983,-500.0,0.00046999,120]
[377203544,1754290292034,-151.0,0.00046999,14]
[377203545,1754290292086,-500.0,0.00046999,120]
[377203546,1754290292135,-500.0,0.00046999,120]
[377203547,1754290292185,-300.0,0.00046999,15]
[377203548,1754290292236,-500.0,0.00046999,15]
[377203549,1754290292286,-500.0,0.00046999,15]
[377203550,1754290292337,-500.0,0.00046999,120]
[377203551,1754290292386,-300.0,0.00046999,15]
[377203552,1754290292435,-500.0,0.00046999,15]
[377203553,1754290292485,-500.0,0.00046999,15]
[377203554,1754290292534,-500.0,0.00046999,120]
[377203555,1754290292583,-500.0,0.00046999,120]
[377203556,1754290292639,-212.38697808,0.00046999,15]
[377203557,1754290292694,-300.0,0.00046999,15]
[377203558,1754290292751,-500.0,0.00046999,15]
[377203559,1754290292803,-400.0,0.00046999,120]
[377203560,1754290292859,-418.77521514,0.00046999,15]
[377203561,1754290292910,-277.35679052,0.00046999,15]
[377203562,1754290292960,-287.61899177,0.00046999,15]
[377203563,1754290293011,-298.26089446,0.00046999,15]
[377203564,1754290293069,-309.29654756,0.00046999,15]
[377203565,1754290293122,-320.74051982,0.00046999,15]
[377203566,1754290293177,-332.60791905,0.00046999,15]
[377203567,1754290293231,-440.11764486,0.00046999,15]
[377203568,1754290293283,-416.03518578,0.00046999,15]
[377203569,1754290293334,-372.03260622,0.00046999,15]
[377203570,1754290293388,-151.0,0.00046999,15]
[377203571,1754290293440,-151.0,0.00046999,15]
[377203572,1754290293500,-151.0,0.00046999,15]
[377203573,1754290293554,-151.0,0.00046999,15]
[377203574,1754290293611,-50000.0,0.00047,47]
[377203575,1754290293664,-2272.74811661,0.00047,61]
[377203576,1754290293728,-10655.72090544,0.00047,31]
[377203577,1754290293779,-1473219.93975506,0.00047,15]
[377203578,1754290300363,-151.006603,0.00046465,2]
[377203579,1754290309403,-151.0,0.00045774,7]
[377203580,1754290309429,-15.52188154,0.00046375,2]
[377203581,1754290311181,-151.8,0.00036154,30]
[377203582,1754290311191,-1000.0,0.00036154,120]
[377203583,1754290311200,-836.5,0.00036154,120]
[377203584,1754290311211,-96.73852722,0.00036154,2]
[377203585,1754290311241,-53.26147278,0.00036154,2]
[377203586,1754290311251,-151.0,0.00044425,7]
[377203587,1754290311261,-984.47811846,0.00046375,2]
[377203588,1754290311271,-302.95,0.000465,30]
[377203589,1754290311281,-307.35,0.000465,30]
[377203590,1754290311291,-301.57,0.000465,30]
[377203591,1754290311305,-400.0,0.00046575,120]
[377203592,1754290311315,-442.74,0.00046575,120]
[377203593,1754290311324,-75.18783703,0.00046575,120]
[377203594,1754290311356,-396.44216297,0.00046575,120]
[377203595,1754290311365,-144.09926481,0.00046575,120]
[377203596,1754290311473,-2500.0,0.00046375,2]
[377203597,1754290311483,-255.90073519,0.00046575,120]
[377203598,1754290311492,-451.29,0.00046575,120]
[377203599,1754290311502,-400.0,0.00046575,120]
[377203600,1754290311512,-400.0,0.00046575,120]
[377203601,1754290311522,-400.0,0.00046575,120]
[377203602,1754290311533,-616.61,0.00046575,120]
[377203603,1754290311543,-400.0,0.00046575,120]
[377203604,1754290311555,-400.0,0.00046575,120]
[377203605,1754290311565,-400.0,0.00046575,120]
[377203606,1754290311575,-400.0,0.00046575,120]
[377203607,1754290311586,-500.0,0.00046575,120]
[377203608,1754290311596,-500.0,0.00046575,120]
[377203609,1754290311607,-2538.55,0.00046575,120]
[377203610,1754290311616,-485.24,0.00046575,120]
[377203611,1754290311626,-432.93587261,0.00046575,120]
[377203612,1754290311635,-1069.88,0.00046575,120]
[377203613,1754290311644,-400.0,0.00046575,120]
[377203614,1754290311654,-429.54,0.00046575,120]
[377203615,1754290311664,-292.87,0.00046746,120]
[377203616,1754290311676,-546.61,0.00046748,120]
[377203617,1754290311686,-410.11,0.00046748,120]
[377203618,1754290311695,-4205.8017922,0.00046822,120]
[377203619,1754290311707,-975.66924094,0.00046822,120]
[377203620,1754290313693,-400.0,0.00046575,120]
[377203621,1754290313703,-803.05,0.00046575,120]
[377203622,1754290313715,-400.0,0.00046575,120]
[377203623,1754290313725,-30604.52896686,0.00046822,120]
[377203624,1754290313735,-6563.0,0.00046822,120]
[377203625,1754290313745,-176.0,0.00046837,120]
[377203626,1754290313756,-155.70521398,0.00046839,7]
[377203627,1754290313765,-762.0,0.00046846,120]
[377203628,1754290313775,-400.0,0.00046847,120]
[377203629,1754290313784,-952.84,0.00046847,120]
[377203630,1754290313794,-300.0,0.00046848,30]
[377203631,1754290313804,-4191.81,0.00046849,120]
[377203632,1754290313814,-997.82,0.00046849,120]
[377203633,1754290313823,-402.41235646,0.00046849,120]
[377203634,1754290313833,-706.49,0.00046849,120]
[377203635,1754290313844,-151.0,0.00046849,14]
[377203636,1754290313854,-400.0,0.00046849,120]
[377203637,1754290313864,-151.0,0.00046849,14]
[377203638,1754290313873,-442.74,0.00046849,120]
[377203639,1754290313883,-151.0,0.00046849,14]
[377203640,1754290313896,-151.0,0.00046849,14]
[377203641,1754290313906,-471.63,0.00046849,120]
[377203642,1754290313916,-400.0,0.00046849,120]
[377203643,1754290313925,-879.395519,0.00046849,14]
[377203644,1754290313935,-451.29,0.00046849,120]
[377203645,1754290313945,-400.0,0.00046849,120]
[377203646,1754290313955,-400.0,0.00046849,120]
[377203647,1754290313965,-879.395519,0.00046849,14]
[377203648,1754290313974,-400.0,0.00046849,120]
[377203649,1754290313984,-616.61,0.00046849,120]
[377203650,1754290313994,-400.0,0.00046849,120]
[377203651,1754290314004,-259.33226473,0.00046849,120]
[377203652,1754290314014,-400.0,0.00046849,120]
[377203653,1754290314024,-2538.55,0.00046849,120]
[377203654,1754290314034,-485.24,0.00046849,120]
[377203655,1754290314044,-1069.88,0.00046849,120]
[377203656,1754290314053,-400.0,0.00046849,120]
[377203657,1754290314064,-429.54,0.00046849,120]
[377203658,1754290314073,-803.05,0.00046849,120]
[377203659,1754290314083,-400.0,0.00046849,120]
[377203660,1754290314094,-400.0,0.00046849,120]
[377203661,1754290314104,-6768.98535958,0.000469,2]
[377203662,1754290314114,-151.0,0.00046999,15]
[377203663,1754290314124,-151.0,0.00046999,15]
[377203664,1754290314134,-151.0,0.00046999,15]
[377203665,1754290314144,-151.0,0.00046999,15]
[377203666,1754290314154,-151.0,0.00046999,15]
[377203667,1754290314165,-168.74495425,0.00046999,15]
[377203668,1754290314175,-151.0,0.00046999,15]
[377203669,1754290314186,-151.0,0.00046999,15]
[377203670,1754290314196,-151.0,0.00046999,15]
[377203671,1754290314205,-879.395519,0.00046999,14]
[377203672,1754290314216,-879.395519,0.00046999,14]
[377203673,1754290314225,-151.0,0.00046999,14]
[377203674,1754290314235,-1229480.16537364,0.00047,15]
[377203675,1754290314245,-151.0,0.00047,14]
[377203676,1754290314255,-151.0,0.00047,14]
[377203677,1754290314265,-599.94921178,0.00047,30]
[377203678,1754290314275,-375.27618246,0.00047,120]
[377203679,1754290314284,-316.070445,0.00047,14]
[377203680,1754290314294,-316.070445,0.00047,14]
[377203681,1754290314304,-500.0,0.00047,120]
[377203682,1754290314314,-335.424605,0.00047,14]
[377203683,1754290314323,-200.0,0.00047,7]
[377203684,1754290314333,-335.424605,0.00047,14]
[377203685,1754290314343,-9757.66186823,0.00047,120]
[377203686,1754290314353,-2007.6,0.00047,120]
[377203687,1754290314362,-151.0,0.00047,14]
[377203688,1754290314373,-151.0,0.00047,14]
[377203689,1754290314383,-151.0,0.00047,14]
[377203690,1754290314393,-151.0,0.00047,14]
[377203691,1754290314402,-1000.0,0.00047,120]
[377203692,1754290314412,-151.0,0.00047,14]
[377203693,1754290314423,-15000.0,0.00047,120]
[377203694,1754290314432,-177.685595,0.00047,14]
[377203695,1754290314442,-151.0,0.00047,14]
[377203696,1754290314452,-177.685595,0.00047,14]
[377203697,1754290314461,-151.0,0.00047,14]
[377203698,1754290314470,-151.0,0.00047,14]
[377203699,1754290314480,-151.0,0.00047,14]
[377203700,1754290314489,-271.980692,0.00047,14]
[377203701,1754290314499,-271.980692,0.00047,14]
[377203702,1754290314508,-151.0,0.00047,14]
[377203703,1754290314518,-151.0,0.00047,14]
[377203704,1754290314527,-1553.465892,0.00047,14]
[377203705,1754290314537,-1553.465892,0.00047,14]
[377203706,1754290314546,-226.969151,0.00047,14]
[377203707,1754290314556,-226.969151,0.00047,14]
[377203708,1754290314566,-759.368077,0.00047,14]
[377203709,1754290314575,-759.368077,0.00047,14]
[377203710,1754290314585,-151.0,0.00047,14]
[377203711,1754290314595,-151.0,0.00047,14]
[377203712,1754290314812,-154.971489,0.00047,14]
[377203713,1754290314822,-151.0,0.00047,14]
[377203714,1754290314833,-151.0,0.00047,14]
[377203715,1754290314848,-151.0,0.00047,14]
[377203716,1754290314857,-151.0,0.00047,14]
[377203717,1754290314867,-151.0,0.00047,14]
[377203718,1754290314876,-151.0,0.00047,14]
[377203719,1754290314886,-241.127134,0.00047,14]
[377203720,1754290314896,-879.395519,0.00047,14]
[377203721,1754290314906,-879.395519,0.00047,14]
[377203722,1754290314919,-151.0,0.00047,14]
[377203723,1754290314928,-440.282274,0.00047,14]
[377203724,1754290314938,-194.37614916,0.00047012,15]
[377203725,1754290314948,-355.26,0.00047014,30]
[377203726,1754290314959,-1000.0,0.0004702,2]
[377203727,1754290314969,-400.0,0.0004702,120]
[377203728,1754290314979,-400.0,0.0004702,2]
[377203729,1754290314988,-400.0,0.0004702,120]
[377203730,1754290314998,-489.67,0.0004702,120]
[377203731,1754290315008,-400.0,0.0004702,120]
[377203732,1754290315017,-2452.52,0.0004702,120]
[377203733,1754290315028,-400.0,0.0004702,120]
[377203734,1754290315038,-400.0,0.0004702,120]
[377203735,1754290315049,-400.0,0.0004702,120]
[377203736,1754290315059,-6842.01,0.0004702,120]
[377203737,1754290315068,-400.0,0.00047021,120]
[377203738,1754290315079,-562.27,0.00047021,120]
[377203739,1754290315091,-400.0,0.00047021,120]
[377203740,1754290315101,-500.92,0.00047021,120]
[377203741,1754290315111,-400.0,0.00047021,120]
[377203742,1754290315120,-1744.82,0.00047021,120]
[377203743,1754290315130,-1361.4,0.00047021,120]
[377203744,1754290315140,-669.57,0.00047021,120]
[377203745,1754290315150,-1817.69,0.00047021,120]
[377203746,1754290315159,-579.33,0.00047021,120]
[377203747,1754290315169,-400.0,0.00047021,120]
[377203748,1754290315180,-400.0,0.00047021,120]
[377203749,1754290315189,-490.79,0.00047021,120]
[377203750,1754290315199,-400.0,0.00047021,120]
[377203751,1754290315209,-400.0,0.00047021,120]
[377203752,1754290315219,-400.0,0.00047021,120]
[377203753,1754290315229,-400.0,0.00047021,120]
[377203754,1754290315239,-809.06,0.00047021,120]
[377203755,1754290315249,-1226.73,0.00047021,120]
[377203756,1754290315259,-1863.87,0.00047021,120]
[377203757,1754290315269,-971.64,0.00047021,120]
[377203758,1754290315279,-1351.39,0.00047021,120]
[377203759,1754290315289,-444.66,0.00047021,120]
[377203760,1754290315299,-491.07,0.00047022,120]
[377203761,1754290315309,-572.97,0.00047022,120]
[377203762,1754290315319,-609.61,0.00047022,120]
[377203763,1754290315329,-400.0,0.00047022,120]
[377203764,1754290315339,-451.64,0.00047022,120]
[377203765,1754290315349,-544.95,0.00047022,120]
[377203766,1754290315358,-1000.0,0.00047022,120]
[377203767,1754290315368,-2268.23,0.00047022,120]
[377203768,1754290315378,-400.0,0.00047022,120]
[377203769,1754290315388,-875.84,0.00047022,120]
[377203770,1754290315397,-1081.24,0.00047022,120]
[377203771,1754290315407,-400.0,0.00047022,120]
[377203772,1754290315417,-1125.71,0.00047022,120]
[377203773,1754290315431,-400.0,0.00047022,120]
[377203774,1754290315441,-1075.11,0.00047022,120]
[377203775,1754290315450,-1135.97,0.00047022,120]
[377203776,1754290315460,-837.31,0.00047022,120]
[377203777,1754290315478,-631.71,0.00047022,120]
[377203778,1754290315490,-400.0,0.00047022,120]
[377203779,1754290315500,-400.0,0.00047022,120]
[377203780,1754290315510,-400.0,0.00047022,120]
[377203781,1754290315521,-943.05,0.00047022,120]
[377203782,1754290315531,-874.81,0.00047022,120]
[377203783,1754290315540,-710.83,0.00047022,120]
[377203784,1754290315550,-400.0,0.00047022,120]
[377203785,1754290315560,-962.78,0.00047022,120]
[377203786,1754290315570,-521.3,0.00047022,120]
[377203787,1754290315580,-1665.02,0.00047022,120]
[377203788,1754290315590,-1123.16,0.00047022,120]
[377203789,1754290315601,-1203.56,0.00047022,120]
[377203790,1754290315611,-400.0,0.00047022,120]
[377203791,1754290315621,-1304.29,0.00047022,120]
[377203792,1754290315630,-498.27,0.00047022,120]
[377203793,1754290315640,-1203.79,0.00047022,120]
[377203794,1754290315650,-1029.19,0.00047022,120]
[377203795,1754290315660,-804.54,0.00047022,120]
[377203796,1754290315670,-902.84,0.00047022,120]
[377203797,1754290315684,-439.27,0.00047022,120]
[377203798,1754290315694,-1564.15,0.00047022,120]
[377203799,1754290315704,-546.61,0.00047022,120]
[377203800,1754290315714,-410.11,0.00047022,120]
[377203801,1754290315725,-603.23413167,0.00047043,2]
[377203802,1754290315735,-150.0,0.00047044,7]
[377203803,1754290315745,-150.0,0.00047076,7]
[377203804,1754290315756,-888.0,0.00047079,3]
[377203805,1754290315766,-888.0,0.0004708,120]
[377203806,1754290315776,-150.0,0.00047098,7]
[377203807,1754290315786,-151.0,0.000471,120]
[377203808,1754290315796,-150.0,0.00047104,7]
[377203809,1754290315806,-519.33329631,0.00047108,15]
[377203810,1754290315816,-1489.68,0.00047112,120]
[377203811,1754290315826,-432.95,0.00047112,120]
[377203812,1754290315837,-1113.83,0.00047112,120]
[377203813,1754290315847,-400.0,0.00047112,120]
[377203814,1754290315857,-406.65,0.00047112,120]
[377203815,1754290315866,-1000.0,0.00047112,120]
[377203816,1754290315876,-560.64,0.00047112,120]
[377203817,1754290315886,-400.0,0.00047112,120]
[377203818,1754290315896,-400.0,0.00047112,120]
[377203819,1754290315906,-400.0,0.00047112,120]
[377203820,1754290315916,-710.83,0.00047112,120]
[377203821,1754290315925,-400.0,0.00047112,120]
[377203822,1754290315936,-649.27,0.00047112,120]
[377203823,1754290315945,-552.88,0.00047112,120]
[377203824,1754290315955,-2792.42,0.00047112,120]
[377203825,1754290315965,-682.02133868,0.0004712,30]
[377203826,1754290315975,-151.0,0.00047121,14]
[377203827,1754290315985,-151.0,0.00047121,14]
[377203828,1754290315994,-151.0,0.00047121,14]
[377203829,1754290316004,-156.513014,0.00047121,14]
[377203830,1754290316019,-151.0,0.00047121,14]
[377203831,1754290316029,-151.0,0.00047121,14]
[377203832,1754290316039,-400.0,0.00047121,120]
[377203833,1754290316050,-400.0,0.00047121,120]
[377203834,1754290316059,-151.0,0.00047121,14]
[377203835,1754290316069,-400.0,0.00047121,120]
[377203836,1754290316080,-400.0,0.00047121,120]
[377203837,1754290316090,-151.0,0.00047121,14]
[377203838,1754290316101,-233.53770445,0.00047121,120]
[377203839,1754290316111,-400.0,0.00047121,120]
[377203840,1754290316121,-225.33847166,0.00047121,120]
[377203841,1754290316131,-400.0,0.00047121,120]
[377203842,1754290316141,-400.0,0.00047121,120]
[377203843,1754290316151,-151.0,0.00047121,14]
[377203844,1754290316161,-151.0,0.00047121,14]
[377203845,1754290316172,-400.0,0.00047121,16]
[377203846,1754290316182,-400.0,0.00047121,120]
[377203847,1754290316192,-400.0,0.00047121,120]
[377203848,1754290316202,-284.58398447,0.00047121,120]
[377203849,1754290316212,-400.0,0.00047121,120]
[377203850,1754290316222,-400.0,0.00047121,30]
[377203851,1754290316231,-400.0,0.00047121,120]
[377203852,1754290316242,-400.0,0.00047121,120]
[377203853,1754290316252,-548.66,0.00047121,120]
[377203854,1754290316262,-151.0,0.00047121,14]
[377203855,1754290316272,-277.707319,0.00047121,14]
[377203856,1754290316282,-151.0,0.00047121,14]
[377203857,1754290316292,-277.707319,0.00047121,14]
[377203858,1754290316302,-151.0,0.00047121,14]
[377203859,1754290316312,-400.0,0.00047121,120]
[377203860,1754290316322,-505.72362284,0.00047121,120]
[377203861,1754290316332,-400.0,0.00047121,120]
[377203862,1754290316342,-400.0,0.00047121,120]
[377203863,1754290316352,-401.87299053,0.00047121,120]
[377203864,1754290316367,-1932.33,0.00047121,120]
[377203865,1754290316377,-400.89194781,0.00047121,120]
[377203866,1754290316387,-628.41,0.00047121,120]
[377203867,1754290316397,-400.0,0.00047121,120]
[377203868,1754290316407,-446.35802714,0.00047121,120]
[377203869,1754290316416,-787.95,0.00047121,120]
[377203870,1754290316426,-151.0,0.00047121,14]
[377203871,1754290316437,-400.0,0.00047121,120]
[377203872,1754290316447,-151.0,0.00047121,14]
[377203873,1754290316457,-500.0,0.00047121,120]
[377203874,1754290316467,-400.0,0.00047121,120]
[377203875,1754290316477,-400.0,0.00047121,120]
[377203876,1754290316487,-151.0,0.00047121,14]
[377203877,1754290316497,-415.61,0.00047121,120]
[377203878,1754290316509,-271.89582684,0.00047121,120]
[377203879,1754290316523,-1291.26,0.00047121,120]
[377203880,1754290316532,-400.0,0.00047121,120]
[377203881,1754290316543,-401.4524382,0.00047121,120]
[377203882,1754290316553,-1049.53,0.00047121,120]
[377203883,1754290316563,-400.0,0.00047121,120]
[377203884,1754290316573,-400.0,0.00047121,90]
[377203885,1754290316583,-400.0,0.00047121,120]
[377203886,1754290316594,-400.0,0.00047121,120]
[377203887,1754290316604,-400.0,0.00047121,120]
[377203888,1754290316615,-400.0,0.00047121,120]
[377203889,1754290316625,-424.15,0.00047121,120]
[377203890,1754290316636,-400.0,0.00047121,120]
[377203891,1754290316647,-424.59,0.00047121,120]
[377203892,1754290316658,-969.57,0.00047121,120]
[377203893,1754290316669,-1045.44,0.00047121,120]
[377203894,1754290316683,-151.0,0.00047121,14]
[377203895,1754290316700,-725.25,0.00047121,120]
[377203896,1754290316711,-400.0,0.00047121,120]
[377203897,1754290316722,-151.0,0.00047121,14]
[377203898,1754290316732,-415.1338187,0.00047121,120]
[377203899,1754290316743,-400.0,0.00047121,120]
[377203900,1754290316752,-400.0,0.00047121,120]
[377203901,1754290316763,-400.0,0.00047121,120]
[377203902,1754290316773,-400.0,0.00047121,120]
[377203903,1754290316783,-400.0,0.00047121,120]
[377203904,1754290316793,-151.0,0.00047121,14]
[377203905,1754290316804,-714.58,0.00047121,120]
[377203906,1754290316814,-151.0,0.00047121,14]
[377203907,1754290316828,-400.0,0.00047121,120]
[377203908,1754290316840,-799.01,0.00047121,120]
[377203909,1754290316850,-1561.925184,0.00047121,14]
[377203910,1754290316860,-411.41,0.00047121,120]
[377203911,1754290316871,-1561.925184,0.00047121,14]
[377203912,1754290316881,-183.49175258,0.00047121,120]
[377203913,1754290316891,-400.0,0.00047121,120]
[377203914,1754290316901,-1325.57,0.00047121,120]
[377203915,1754290316911,-550.74,0.00047121,120]
[377203916,1754290316921,-400.0,0.00047121,120]
[377203917,1754290316931,-400.81149866,0.00047121,120]
[377203918,1754290316942,-585.34,0.00047121,120]
[377203919,1754290316951,-400.0,0.00047121,120]
[377203920,1754290316962,-887.25,0.00047121,120]
[377203921,1754290316972,-400.0,0.00047121,120]
[377203922,1754290316983,-400.0,0.00047121,120]
[377203923,1754290316993,-187.53241024,0.00047121,120]
[377203924,1754290317004,-400.0,0.00047121,120]
[377203925,1754290317015,-667.22,0.00047121,120]
[377203926,1754290317026,-411.23,0.00047121,120]
[377203927,1754290317037,-400.0,0.00047121,120]
[377203928,1754290317048,-400.0,0.00047121,120]
[377203929,1754290317058,-606.02,0.00047121,120]
[377203930,1754290317069,-403.24544276,0.00047121,120]
[377203931,1754290317079,-1502.07,0.00047121,120]
[377203932,1754290317090,-400.0,0.00047121,120]
[377203933,1754290317101,-400.0,0.00047121,120]
[377203934,1754290317112,-400.0,0.00047121,120]
[377203935,1754290317123,-400.0,0.00047121,120]
[377203936,1754290317134,-1429.84,0.00047121,120]
[377203937,1754290317144,-151.0,0.00047121,14]
[377203938,1754290317155,-151.0,0.00047121,14]
[377203939,1754290317166,-400.0,0.00047121,120]
[377203940,1754290317176,-400.0,0.00047121,120]
[377203941,1754290317186,-151.0,0.00047121,14]
[377203942,1754290317196,-151.0,0.00047121,14]
[377203943,1754290317207,-150.0,0.00047121,12]
[377203944,1754290317217,-1497.43,0.00047121,120]
[377203945,1754290317227,-413.75,0.00047121,120]
[377203946,1754290317237,-400.0,0.00047121,120]
[377203947,1754290317247,-151.0,0.00047121,14]
[377203948,1754290317258,-1797.51,0.00047121,120]
[377203949,1754290317268,-1036.9,0.00047121,120]
[377203950,1754290317279,-151.0,0.00047121,14]
[377203951,1754290317290,-400.0,0.00047121,120]
[377203952,1754290317300,-400.0,0.00047121,120]
[377203953,1754290317310,-798.55,0.00047121,120]
[377203954,1754290317320,-400.0,0.00047121,120]
[377203955,1754290317331,-1300.22,0.00047121,120]
[377203956,1754290317342,-400.0,0.00047121,2]
[377203957,1754290317352,-245.0,0.00047121,14]
[377203958,1754290317362,-400.0,0.00047121,120]
[377203959,1754290317372,-400.0,0.00047121,120]
[377203960,1754290317382,-400.0,0.00047121,120]
[377203961,1754290317392,-400.0,0.00047121,120]
[377203962,1754290317402,-617.54,0.00047121,120]
[377203963,1754290317412,-867.82,0.00047121,120]
[377203964,1754290317422,-400.0,0.00047121,120]
[377203965,1754290317432,-151.0,0.00047121,14]
[377203966,1754290317442,-400.0,0.00047121,120]
[377203967,1754290317452,-509.11049315,0.00047121,120]
[377203968,1754290317462,-400.0,0.00047121,120]
[377203969,1754290317472,-1082.12,0.00047121,120]
[377203970,1754290317482,-471.92,0.00047121,120]
[377203971,1754290317492,-400.0,0.00047121,120]
[377203972,1754290317502,-536.03,0.00047121,120]
[377203973,1754290317512,-151.937112,0.00047121,14]
[377203974,1754290317522,-400.0,0.00047121,120]
[377203975,1754290317533,-400.0,0.00047121,120]
[377203976,1754290317543,-1159.47,0.00047121,120]
[377203977,1754290317553,-400.0,0.00047121,120]
[377203978,1754290317563,-1498.69,0.00047121,120]
[377203979,1754290317573,-862.09,0.00047121,120]
[377203980,1754290317583,-461.975391,0.00047121,14]
[377203981,1754290317594,-400.0,0.00047121,120]
[377203982,1754290317604,-519.94509115,0.00047121,120]
[377203983,1754290317614,-854.43,0.00047121,120]
[377203984,1754290317624,-461.975391,0.00047121,14]
[377203985,1754290317635,-1082.83,0.00047121,120]
[377203986,1754290317645,-400.0,0.00047121,120]
[377203987,1754290317656,-1834.99,0.00047121,120]
[377203988,1754290317666,-447.19,0.00047121,120]
[377203989,1754290317678,-151.0,0.00047121,14]
[377203990,1754290317689,-400.0,0.00047121,120]
[377203991,1754290317699,-715.03,0.00047121,120]
[377203992,1754290317709,-623.69,0.00047121,120]
[377203993,1754290317720,-151.0,0.00047121,14]
[377203994,1754290317729,-400.0,0.00047121,120]
[377203995,1754290317739,-878.68,0.00047121,120]
[377203996,1754290317749,-404.35,0.00047121,120]
[377203997,1754290317760,-267.09288406,0.00047121,120]
[377203998,1754290317770,-1095.01,0.00047121,120]
[377203999,1754290317780,-584.16,0.00047121,120]
[377204000,1754290317791,-565.86,0.00047121,120]
[377204001,1754290317801,-400.0,0.00047121,120]
[377204002,1754290317812,-400.0,0.00047121,120]
[377204003,1754290317823,-400.0,0.00047121,120]
[377204004,1754290317834,-401.90639724,0.00047121,120]
[377204005,1754290317849,-676.02,0.00047121,120]
[377204006,1754290317859,-1670.57,0.00047121,120]
[377204007,1754290317870,-400.0,0.00047121,120]
[377204008,1754290317880,-1199.94,0.00047121,120]
[377204009,1754290317891,-151.0,0.00047121,14]
[377204010,1754290317901,-543.84,0.00047121,120]
[377204011,1754290317912,-941.48,0.00047121,120]
[377204012,1754290317922,-400.0,0.00047121,120]
[377204013,1754290317932,-761.23,0.00047121,120]
[377204014,1754290317942,-629.68,0.00047121,120]
[377204015,1754290317952,-400.0,0.00047121,120]
[377204016,1754290318319,-400.0,0.00047121,120]
[377204017,1754290318329,-400.0,0.00047121,120]
[377204018,1754290318339,-400.0,0.00047121,120]
[377204019,1754290318349,-400.0,0.00047121,120]
[377204020,1754290318359,-400.0,0.00047121,120]
[377204021,1754290318368,-400.0,0.00047121,120]
[377204022,1754290318377,-497.21,0.00047121,120]
[377204023,1754290318387,-400.72514265,0.00047121,120]
[377204024,1754290318396,-1526.71,0.00047121,120]
[377204025,1754290318406,-400.0,0.00047121,120]
[377204026,1754290318416,-400.0,0.00047121,120]
[377204027,1754290318425,-400.0,0.00047121,120]
[377204028,1754290318435,-411.22,0.00047121,120]
[377204029,1754290318444,-518.84,0.00047121,120]